Cogmind - Beta 14 @@@ ROGUE MODE // 2024.08.13 @ 00:21:43 Player: Lillith Result: Self-destructed Performance ------------- Evolutions (2) 1000 Regions Visited (3) 600 Robots Destroyed (44) 220 Value Destroyed (1270) 1270 Prototype IDs (11) 220 Alien Tech Used (0) 0 Bonus (0) 0 TOTAL SCORE: 3310 Bonus ------- None Cogmind --------- Core Integrity 550/550 Matter 240/300 Energy 160/160 System Corruption 0% Temperature Cool (0) Movement Rolling (160) Ox4 Location -8/Materials Parts ------- > --- POWER (1+1) ------ Light Nuclear Core > --- PROPULSION (3+2) - Spiked Treads Improved Aluminum Leg Compact Wheel > --- UTILITY (3+1) ---- Large Storage Unit Tower Shield > --- WEAPON (4+2) ----- Battle Rifle Barrage Gun Light Cannon Battle Cannon > --- INVENTORY (15) --- High-capacity Matter Pod (0) Light Armor Plating Makeshift Kinetic Plating Scrap Shield Beam Rifle Light EM Pulse Cannon Light EM Pulse Cannon Gauss Rifle Subdweller Shrapnel Launcher Peak State ------------ > --- POWER ------------ Ion Engine > --- PROPULSION ------- Spiked Treads Improved Aluminum Leg Subdweller Monowheel > --- UTILITY ---------- Large Storage Unit Tower Shield System Restoration Module > --- WEAPON ----------- Battle Rifle Barrage Gun Light Cannon Battle Cannon > --- INVENTORY -------- High-capacity Matter Pod Light Armor Plating Makeshift Kinetic Plating Scrap Shield Light EM Pulse Cannon Light EM Pulse Cannon Subdweller Shrapnel Launcher [Rating: 41] Favorites ----------- Power Ion Engine Engine Ion Engine Power Core Light Nuclear Core Propulsion Light Treads Treads Light Treads Leg Improved Aluminum Leg Wheel Subdweller Monowheel Utility Scrap Shield Device System Restoration Module Storage Large Storage Unit Protection Scrap Shield Weapon Light Cannon Energy Gun EM Pulse Gun Energy Cannon Light EM Pulse Cannon Ballistic Gun Battle Rifle Ballistic Cannon Light Cannon Launcher Grenade Launcher Special Weapon Mining Laser Build | -11 -10 -10 -8 ------- Run | Yrd Mat Sub Mat Slots Evolved 4 | . . . 4 Power . | . . . . Propulsion 1 | . . . 1 Utility 1 | . . . 1 Weapon 2 | . . . 2 Parts Attached 61 | 6 10 37 8 Power 5 | 1 2 1 1 Engine 4 | 1 2 1 . Core 1 | . . . 1 Reactor . | . . . . Propulsion 10 | 2 . 5 3 Treads 6 | 2 . 4 . Leg 2 | . . . 2 Wheel 2 | . . 1 1 Hover . | . . . . Flight . | . . . . Utility 12 | 1 3 6 2 Device 1 | . . . 1 Storage 4 | 1 2 1 . Processor . | . . . . Hackware . | . . . . Protection 7 | . 1 5 1 Artifact . | . . . . Weapon 34 | 2 5 25 2 Energy Gun 1 | 1 . . . Energy Cannon 6 | . 3 3 . Ballistic Gun 4 | 1 1 . 2 Ballistic Cannon 12 | . . 12 . Launcher 9 | . 1 8 . Special Weapon 2 | . . 2 . Impact Weapon . | . . . . Slashing Weapon . | . . . . Piercing Weapon . | . . . . Special Melee Weapon . | . . . . Unidentified Prototypes . | . . . . Parts Lost 5 | . . 4 1 Power 2 | . . 1 1 Propulsion 1 | . . 1 . Utility 1 | . . 1 . Weapon 1 | . . 1 . Highest Loss Streak 2 | . . 2 1 To Critical Strikes . | . . . . Average Slot Usage (%) 84 | . 97 86 50 Engine 12 | . 14 14 3 Treads 22 | . 28 24 5 Wheel 3 | . . 3 2 Storage 4 | . 15 2 5 Protection 12 | . 10 13 4 Energy Cannon 4 | . 23 1 . Ballistic Gun 1 | . 2 . 7 Ballistic Cannon 20 | . . 25 11 Peak Build Rating 41 | 6 10 16 41 Average Rating 13 | 4 9 11 35 On Entrance 8 | . 6 10 16 Naked Turns . | . . . . Heaviest Build 75 | 13 26 38 75 Greatest Support 40 | 40 40 40 23 Greatest Overweight (x) 5 | 3 . 1 5 Average Overweight (x) . | . . . 3 Largest Inventory Capacity 15 | 8 10 15 15 Average Capacity 7 | 7 8 6 15 Most Carried 12 | 4 10 11 12 Average Carried 6 | 2 8 5 9 Final Capacity 15 | 8 10 15 15 Final Carried 11 | 4 10 11 10 Class Distribution -------------------- 93% | Mutant 6% | Derelict-Gunner Dominant Class ---------------- Mutant | -10/Materials Mutant | -10/Subcaves Derelict-Gunner | -8/Materials Resources | -11 -10 -10 -8 ----------- Run | Yrd Mat Sub Mat Matter Collected 1791 | 260 180 1020 331 Remotely . | . . . . Salvage Created 1183 | . 304 597 282 Parts 85 | . 26 40 19 Haulers Intercepted 2 | . 2 . . Recyclers Shooed . | . . . . Parts Field Recycled . | . . . . Retrieved Matter . | . . . . Parts Self-Destructed 21 | . . 21 . Prevented . | . . . . Kills | -11 -10 -10 -8 ------- Run | Yrd Mat Sub Mat Combat Hostiles Destroyed 37 | . 9 22 6 Guns 5 | . 3 . 2 Cannons 24 | . 4 16 4 AOE 8 | . 2 6 . Classes Destroyed 10 | . 5 2 3 Hauler 2 | . 2 . . Recycler 1 | . . . 1 Operator 2 | . 2 . . Watcher 2 | . 2 . . Swarmer 11 | . 8 3 . Grunt 5 | . 1 2 2 Duelist 1 | . . . 1 Sentry 3 | . . 1 2 Hunter 1 | . . . 1 Subdweller 16 | . . 16 . Best Kill Streak 4 | . 4 3 4 Combat Bots Only 4 | . 3 3 4 Max Kills in Single Turn 2 | . 2 2 1 Gunslinging . | . . . . Exploded 2 | . 1 2 . Melee . | . . . . Uniques/NPCs Destroyed . | . . . . Combat | -11 -10 -10 -8 -------- Run | Yrd Mat Sub Mat Hostile Shots Fired 157 | . 24 95 38 Missed 38 | . 3 24 11 Damage Taken 2180 | . 255 1514 411 Core 191 | . 43 148 . Absorbed by Shields . | . . . . Core Remaining (%) 61 | 100 . 23 . Volleys Fired 142 | . 22 100 20 Largest 4 | . 2 2 4 Hottest 127 | . 112 112 127 Shots Fired 284 | . 40 174 70 Gun 44 | . 14 . 30 Cannon 207 | . 22 145 40 Launcher 14 | . 4 10 . Special 19 | . . 19 . Kinetic 213 | . 7 136 70 Thermal 19 | . . 19 . Explosive 14 | . 4 10 . Electromagnetic 38 | . 29 9 . Robot Hit Streak 16 | . 6 16 10 Robot Miss Streak 5 | . 5 3 5 Penetration Max . | . . . . Secondary Targets 1 | . 1 . . Max Gunslinging Chain 1 | . 1 . . Shots Hit Robots 145 | . 24 79 42 Core Hits 66 | . 17 34 15 Critical Kills . | . . . . Critical Parts Destroyed . | . . . . Critical Strikes 3 | . 1 2 . Blast 2 | . . 2 . Corrupt 1 | . 1 . . Melee Attacks . | . . . . Impact . | . . . . Slashing . | . . . . Piercing . | . . . . Sneak Attacks . | . . . . Combat Hostiles . | . . . . Follow-up Attacks . | . . . . Damage Inflicted 3304 | . 771 1804 729 Guns 384 | . 108 . 276 Cannons 2066 | . 370 1243 453 Explosions 853 | . 292 561 . Melee . | . . . . Ramming 1 | . 1 . . Kinetic 1873 | . 37 1107 729 Thermal 67 | . 67 . . Explosive 786 | . 225 561 . Electromagnetic 577 | . 441 136 . Impact . | . . . . Slashing . | . . . . Piercing . | . . . . Highest Corruption . | . . . . Average Corruption . | . . . . Corruption Purged . | . . . . Corruption Blocked . | . . . . Overload Shots . | . . . . Overflow Damage 19 | . . 15 4 Projectiles 4 | . . . 4 Explosions 15 | . . 15 . Melee . | . . . . Knockbacks 20 | . . 12 8 Impact . | . . . . Kinetic 20 | . . 12 8 Secondary . | . . . . Self-Inflicted Damage 100 | . 83 17 . Shots 4 | . 3 1 . Rammed 2 | . 2 . . Targets Rammed 2 | . 2 . . Kicked . | . . . . Crushed . | . . . . Highest Temperature 273 | . 180 273 250 Average Temperature 76 | . 60 108 80 Received Heat Transfer 1024 | . . 898 126 Siege Activations . | . . . . Robots Corrupted 1 | . 1 . . Combat Hostiles . | . . . . Parts Fried 6 | . 4 2 . Impact Corruptions . | . . . . Robots Melted . | . . . . Combat Hostiles . | . . . . Parts Melted 1 | . . 1 . Heat Transferred 100 | . 100 . . Parts Sabotaged . | . . . . Parts Stolen . | . . . . Parts Stripped . | . . . . Power Chain Reactions 1 | . 1 . . Alert | -11 -10 -10 -8 ------- Run | Yrd Mat Sub Mat Peak Influence 212 | . 212 . 122 Initial . | . . . . Average 62 | . 75 . 48 Maximum Alert Level 1 | . 1 . . Low Security (%) 97 | 100 96 . 100 Level 1 2 | . 3 . . Level 2 . | . . . . Level 3 . | . . . . Level 4 . | . . . . Level 5 . | . . . . High Security . | . . . . Max Security . | . . . . Squads Dispatched 1 | . 1 . . Investigation . | . . . . Extermination . | . . . . Reinforcement 1 | . 1 . . Assault . | . . . . Garrison . | . . . . Intercept . | . . . . Searches Triggered . | . . . . Construction Impeded . | . . . . Haulers Reinforced . | . . . . Active Scanning Responses . | . . . . Cargo Convoy Interrupts . | . . . . Stealth | -11 -10 -10 -8 --------- Run | Yrd Mat Sub Mat Distress Signals 3 | . 3 . . Communications Jammed . | . . . . Distress Signals . | . . . . Times Spotted 49 | . 19 22 8 Peak Tracking Total 6 | . 6 3 3 Tactical Retreats 1 | . 1 . . Traps | -11 -10 -10 -8 ------- Run | Yrd Mat Sub Mat Traps Triggered 2 | . . 2 . Indirectly . | . . . . Trap Hack Attempts . | . . . . Triggered . | . . . . Disarmed . | . . . . Reprogrammed . | . . . . Reused . | . . . . Traps Extracted . | . . . . Installed . | . . . . Triggered . | . . . . Machines | -11 -10 -10 -8 ---------- Run | Yrd Mat Sub Mat Machines Disabled 1 | . . 1 . Max in Single Turn 1 | . . 1 . Machines Repaired . | . . . . Machines Dismantled . | . . . . Machines Sabotaged . | . . . . Overloaded Fab Kills . | . . . . Hacking | -11 -10 -10 -8 --------- Run | Yrd Mat Sub Mat Machines Accessed 3 | . 1 2 . Terminals 1 | . 1 . . Fabricators . | . . . . Repair Stations . | . . . . Recycling Units . | . . . . Scanalyzers . | . . . . Garrison Access . | . . . . Total Hacks 9 | . 4 5 . Successful 8 | . 3 5 . Failed 1 | . 1 . . Catastrophic . | . . . . Database Lockouts . | . . . . Manual . | . . . . Terminals 4 | . 4 . . Fabricators . | . . . . Repair Stations . | . . . . Recycling Units . | . . . . Scanalyzers . | . . . . Garrison Access . | . . . . Terminal Hacks 8 | . 3 5 . Record 4 | . . 4 . Alert Level 1 | . 1 . . Unreport Threat 1 | . 1 . . Locate Traps 1 | . 1 . . Derelict Proto ID Bank 1 | . . 1 . Fabricator Hacks . | . . . . Repair Station Hacks . | . . . . Recycling Unit Hacks . | . . . . Scanalyzer . | . . . . Garrison Access Hacks . | . . . . Unauthorized Hacks . | . . . . Terminals . | . . . . Fabricators . | . . . . Repair Stations . | . . . . Recycling Units . | . . . . Scanalyzers . | . . . . Garrison Access . | . . . . Data Cores Recovered 2 | . 2 . . Used . | . . . . Hacking Detections 1 | . 1 . . Full Trace Events . | . . . . Feedback Events . | . . . . Feedback Blocked . | . . . . Robot Schematics Acquired . | . . . . Robots Built . | . . . . Authchips . | . . . . Time . | . . . . Total Robot Build Rating . | . . . . Part Schematics Acquired . | . . . . Parts Built . | . . . . Authchips . | . . . . Time . | . . . . Total Part Build Rating . | . . . . Parts Repaired . | . . . . Time . | . . . . Parts Recycled . | . . . . Recycled Matter . | . . . . Retrieved Matter . | . . . . Retrieved Components . | . . . . Parts Scanalyzed . | . . . . Part Schematics Acquired . | . . . . Parts Damaged . | . . . . Bothacking | -11 -10 -10 -8 ------------ Run | Yrd Mat Sub Mat Used RIF Installer . | . . . . Robots Hacked . | . . . . Non-combat . | . . . . Combat . | . . . . Robot Hacks Applied . | . . . . Relay Couplers Released . | . . . . Fabnet Peak Effective % . | . . . . Robots Rewired . | . . . . Allies Hacked . | . . . . Hacks Repelled . | . . . . Allies | -11 -10 -10 -8 -------- Run | Yrd Mat Sub Mat Total Allies . | . . . . Largest Group . | . . . . Highest-Rated Group . | . . . . Highest-Rated Ally . | . . . . Total Orders . | . . . . Ally Attacks . | . . . . Total Damage . | . . . . Kills . | . . . . Allies Corrupted . | . . . . Allies Melted . | . . . . Intel | -11 -10 -10 -8 ------- Run | Yrd Mat Sub Mat Robot Analysis Total . | . . . . Derelict Logs Recovered 2 | . . 2 . Drone Launches . | . . . . Drone Recoveries . | . . . . Exploration | -11 -10 -10 -8 ------------- Run | Yrd Mat Sub Mat Turns Passed 6311 | 81 968 4639 623 Spaces Moved 3209 | 45 467 2530 167 Core 6 | 6 . . . Treads 2738 | 39 467 2188 44 Legs 69 | . . . 69 Wheels 396 | . . 342 54 Hover . | . . . . Flight . | . . . . Fastest Speed 50 | 50 160 110 160 Average Speed 172 | 153 160 166 307 Slowest Speed 470 | 200 160 260 470 Overloaded Moves . | . . . . Propulsion Burnouts . | . . . . Robots Hopped . | . . . . Cave-ins Triggered . | . . . . Exploration Rate (%) 44 | 4 70 92 11 Regions Visited 3 Branch Regions 1 Pre-discovered Areas 2 | . . 2 . Known Exits Taken . | . . . . Unknown Exits Taken 3 | 1 1 1 . Scrap Searched 7 | . . 7 . Spaces Dug 1 | . . 1 . Terrain Destroyed 84 | . 31 52 1 Melee . | . . . . Projectile 3 | . . 2 1 AOE 81 | . 31 50 . Terrain Rammed . | . . . . Walls Destroyed . | . . . . Machines Disabled . | . . . . Actions | -11 -10 -10 -8 --------- Run | Yrd Mat Sub Mat Total 3687 | 54 651 2749 233 Wait 189 | . 121 38 30 Move 3207 | 44 467 2529 167 Hop . | . . . . Pick Up 34 | 4 14 14 2 Fast Attach 21 | 6 4 6 5 Attach 6 | . . 3 3 Detach 5 | . 1 . 4 Swap 34 | . 6 28 . Drop 34 | . 15 17 2 Fire 142 | . 22 100 20 Melee . | . . . . Ram . | . . . . Kick . | . . . . Crush 1 | . 1 . . Escape Stasis . | . . . . Rewire . | . . . . Trap . | . . . . Miscellaneous 14 | . . 14 . Route ------- -11/Scrapyard -10/Materials (discovered 3 exits: [*Mat x2] / *Sub) -10/Subcaves (discovered 2 exits: *Mat x2) -8/Materials History --------- Turn | Location | Event 20 | -11/Scrapyard | Discovered new exit (range 16) 82 | -11/Scrapyard | Entered Materials 325 | -10/Materials | Build established: Mutant 451 | -10/Materials | Discovered new exit (range 13) 791 | -10/Materials | Discovered new exit (range 15) 1035 | -10/Materials | Discovered new exit (range 3) 1050 | -10/Materials | Entered Subcaves 1297 | -10/Subcaves | Learned Materials interactive machine intel 1359 | -10/Subcaves | Visited Clippyterm 1364 | -10/Subcaves | Learned location of Deep Caves (-6) 1364 | -10/Subcaves | Learned Research machine intel 1543 | -10/Subcaves | Discovered new exit (range 11) 1609 | -10/Subcaves | Learned location of Mines (-10) 1622 | -10/Subcaves | A swath of the cavern ceiling suddenly collapsed 1768 | -10/Subcaves | A swath of the cavern ceiling suddenly collapsed 2110 | -10/Subcaves | Ambushed by Subdwellers from Twisted Machinery 2231 | -10/Subcaves | Disturbed a concealed Subdweller 2711 | -10/Subcaves | Core integrity fell below 50% 3524 | -10/Subcaves | Visited 4L-MR0's lab 3562 | -10/Subcaves | Found Tower Shield 4239 | -10/Subcaves | Discovered new exit (range 8) 5689 | -10/Subcaves | Entered Materials 5689 | -8/Materials | Evolved 4 slots: Propulsion x1, Utility x1, Weapon x2 5690 | -8/Materials | Loaded intel: 19 interactive machine locations 5691 | -8/Materials | Attached Tower Shield, gained temporary slots: Power, Propulsion x2, Utility x2, Weapon x2 6204 | -8/Materials | Build established: Derelict-Gunner 6312 | -8/Materials | Self-destructed Last Messages --------------- 06190_ H-55 Commando knocked back. 06192_ Penetrated by Slug. 06193_ H-55 Commando destroyed. 06198_ R-06 Scavenger collects Lgt. Nuclear Core. 06201_ R-06 Scavenger collects Carbon-fiber Leg. 06204_ R-06 Scavenger destroyed. 06207_ Acquired 53 matter. 06218_ Acquired Lgt. Nuclear Core. 06223_ Acquired Com. Wheel. 06226_ Dropped Aluminum Leg. 06230_ Acquired 9 matter. 06231_ Acquired 30 matter. 06235_ Acquired Gauss Rifle. 06248_ K-01 Serf collects debris. 06268_ Acquired 4 matter. 06271_ K-01 Serf collects debris. 06276_ Acquired 3 matter. 06284_ Acquired 2 matter. 06312_ Connecting with Repair Station... 06312_ Current location identified: Materials Map ----- +----------------------------------------------------+ | ?????????????????????#! =# | | ?????????????????????# =# | | ??????????############ #? | | ??????????# ## ####### | | ??????????# ## # | | ??????????# ## # " | | ??????????# ## # "" | | ??????????# ## # "" | | ??????????# ## #! "" | | ??????????# ## =+ "" | | ??????????# ## # "" | | ???????##########+#### # " | | ???????#!! % + "" | | ???????#!! % # " | | ???????#!! # | | ???????#! ##+#####+## ##### | | ???????#!! # !! ####???? | | ???????#!! # * #??????? | | ???????##### # #??????? | | ???????????# # #??????? | | ???????????# # #??????? | | ????######## # #??????? | | ????# !! # # #??????? | | ????# ! # # #??????? | | ????# + # #??????? | | ????# "@"" # ##########??????? | | ????# "R"" # #???????????????? | | ????# """ #####???????????????? | | ????########???????????????????? | | ???????????????????????????????? | | ???????????????????????????????? | | ???????????????????????????????? | | ???????????????????????????????? | | ???????????????????????????????? | | ???????????????????????????????? | | | | | | | | | | | | | | | | | | | | | | | | | | | | | | | +----------------------------------------------------+ Best States ------------- Heat Dissipation 31 Energy Generation 14 Energy Capacity 250 Matter Stores 306 Matter Capacity 350 Sight Range 16 Terrain Scan Density 10 Armor Coverage 2000 Resistance: KI 10 Evasion (%) 40 Recoil Reduction 2 Item Schematics ----------------- None Robot Schematics ------------------ None Fabricated ------------ Nothing Alien Tech Used ----------------- None Achievements -------------- None Challenges ------------ None Game ------ Seed RemotePrecisionStorm Manual? 0 Play Time 00:35:54 Cumulative 12.8 hours Start 2024.08.12 @ 23:45:26 End 2024.08.13 @ 00:21:43 Sessions 1 Manual Loads 0 Difficulty Rogue Special Mode None Game No. 23 Rogue 23 Adventurer 0 Explorer 0 Win Type - Total 0 Types 0/0/0/0/0/0/0/0/0 Lore% 18 Gallery% 18 Achievement% 17 Wizard Run 0 Options --------- Layout 0 ASCII 0 Keyboard 1 Movement Arrows Keybinds 0 Fullscreen 2 Font 24/Smallcaps Map View 76x50 Zoom Use 0% Tactical HUD 1 Map Filters NONE Filters NONE Steam 1 RUN: e50e4864-d11e-4cce-af05-b69274042cf2